Workbook

Sheet Payout
A3: PAYOUTS ON JACKPOTS
A5: OPEN ENTRY FEES $50.00 Payout 78% ($39.00)
A6: 4 DIVISIONS
A7: PAY 8 PLACES
A10: YOUTH ENTRY FEES $30.00 PAYOUT $20.00
A11: 3 DIVISIONS
A12: PAY 5 PLACES
A15: Admin fees Youth $7.00 Open $8.00
A16: ABRA Fees 2.00 2.00
A17: Timer (Eye) 1.00 1.00
A19: Total $10.00 $11.00
A21: NO ADDED MONEY

Sheet YOUTH
B1: OCTOBER, 2011 | C1: YOUTH (1) | F1: =MIN(D3:D101) -> 17.489 | G1: 18.189 | H1: 18.889 | I1: 2
A2: No. | B2: NAME | C2: HORSE | D2: RUN 2 | E2: RUN 1 | F2: D1 | G2: D2 | H2: D3 | I2: AVE
A3: 1 | B3: KASHLEY SEITZ | C3: LITTLE DYNMITE | D3: 17.489 | F3: =IF($D3<G$1,$D3,0) -> 17.489 | G3: =IF(F3=0,IF($D3<H$1,$D3,0),0) -> 0 | H3: =IF(D3>H$1,D3,0) -> 0 | I3: =SUM(D3+E3) -> 17.489
A4: 10 | B4: DAKOTA MCIVOR | C4: MISS N JET | D4: 17.65 | F4: =IF($D4<G$1,$D4,0) -> 17.65 | G4: =IF(F4=0,IF($D4<H$1,$D4,0),0) -> 0 | H4: =IF(D4>H$1,D4,0) -> 0 | I4: =SUM(D4+E4) -> 17.65
A5: 38 | B5: SUSAN GULICK | C5: COPY JET ON | D5: 17.813 | F5: =IF($D5<G$1,$D5,0) -> 17.813 | G5: =IF(F5=0,IF($D5<H$1,$D5,0),0) -> 0 | H5: =IF(D5>H$1,D5,0) -> 0 | I5: =SUM(D5+E5) -> 17.813
A6: 24 | B6: JOELY HEWKO | C6: BIG SPECIAL JET | D6: 17.89 | F6: =IF($D6<G$1,$D6,0) -> 17.89 | G6: =IF(F6=0,IF($D6<H$1,$D6,0),0) -> 0 | H6: =IF(D6>H$1,D6,0) -> 0 | I6: =SUM(D6+E6) -> 17.89
A7: 11 | B7: KENDRA MADSON | C7: SMIP | D7: 18.026 | F7: =IF($D7<G$1,$D7,0) -> 18.026 | G7: =IF(F7=0,IF($D7<H$1,$D7,0),0) -> 0 | H7: =IF(D7>H$1,D7,0) -> 0 | I7: =SUM(D7+E7) -> 18.026
A8: 39 | B8: MALAYLA MORGAN | C8: OIE TWO SMOTHE | D8: 18.129 | F8: =IF($D8<G$1,$D8,0) -> 18.129 | G8: =IF(F8=0,IF($D8<H$1,$D8,0),0) -> 0 | H8: =IF(D8>H$1,D8,0) -> 0 | I8: =SUM(D8+E8) -> 18.129
A9: 19 | B9: MADYSON HAGAN | C9: BOGIES KEY LARGO | D9: 18.142 | F9: =IF($D9<G$1,$D9,0) -> 18.142 | G9: =IF(F9=0,IF($D9<H$1,$D9,0),0) -> 0 | H9: =IF(D9>H$1,D9,0) -> 0 | I9: =SUM(D9+E9) -> 18.142
A10: 2 | B10: SHAYLEEN MIZERA | C10: THINK DASHIN | D10: 18.216 | F10: =IF($D10<G$1,$D10,0) -> 0 | G10: =IF(F10=0,IF($D10<H$1,$D10,0),0) -> 18.216 | H10: =IF(D10>H$1,D10,0) -> 0 | I10: =SUM(D10+E10) -> 18.216
A11: 41 | B11: SHAYLEEN MIZERA | C11: WAR DUTCHESS | D11: 18.248 | F11: =IF($D11<G$1,$D11,0) -> 0 | G11: =IF(F11=0,IF($D11<H$1,$D11,0),0) -> 18.248 | H11: =IF(D11>H$1,D11,0) -> 0 | I11: =SUM(D11+E11) -> 18.248
A12: 25 | B12: TAYLOR CUNNINGHAM | C12: DOO | D12: 18.287 | F12: =IF($D12<G$1,$D12,0) -> 0 | G12: =IF(F12=0,IF($D12<H$1,$D12,0),0) -> 18.287 | H12: =IF(D12>H$1,D12,0) -> 0 | I12: =SUM(D12+E12) -> 18.287
A13: 28 | B13: MACY AUCLAIR | C13: RAISE A FLIPIN DANDY | D13: 18.358 | F13: =IF($D13<G$1,$D13,0) -> 0 | G13: =IF(F13=0,IF($D13<H$1,$D13,0),0) -> 18.358 | H13: =IF(D13>H$1,D13,0) -> 0 | I13: =SUM(D13+E13) -> 18.358
A14: 3 | B14: ELIZABETH LUKAES | C14: CLASSICAL MAJOR | D14: 18.478 | F14: =IF($D14<G$1,$D14,0) -> 0 | G14: =IF(F14=0,IF($D14<H$1,$D14,0),0) -> 18.478 | H14: =IF(D14>H$1,D14,0) -> 0 | I14: =SUM(D14+E14) -> 18.478
A15: 36 | B15: TAYLOR MANNING | C15: TIVIO | D15: 18.5 | F15: =IF($D15<G$1,$D15,0) -> 0 | G15: =IF(F15=0,IF($D15<H$1,$D15,0),0) -> 18.5 | H15: =IF(D15>H$1,D15,0) -> 0 | I15: =SUM(D15+E15) -> 18.5
A16: 27 | B16: LEXIE CUNNINGHAM | C16: VAL'S DASH | D16: 18.561 | F16: =IF($D16<G$1,$D16,0) -> 0 | G16: =IF(F16=0,IF($D16<H$1,$D16,0),0) -> 18.561 | H16: =IF(D16>H$1,D16,0) -> 0 | I16: =SUM(D16+E16) -> 18.561
A17: 26 | B17: BROOKLYNN COWLES | C17: RANGER | D17: 18.578 | F17: =IF($D17<G$1,$D17,0) -> 0 | G17: =IF(F17=0,IF($D17<H$1,$D17,0),0) -> 18.578 | H17: =IF(D17>H$1,D17,0) -> 0 | I17: =SUM(D17+E17) -> 18.578
A18: 40 | B18: MACKENZIE ARANAS | C18: THE SILVER SURFER | D18: 18.589 | F18: =IF($D18<G$1,$D18,0) -> 0 | G18: =IF(F18=0,IF($D18<H$1,$D18,0),0) -> 18.589 | H18: =IF(D18>H$1,D18,0) -> 0 | I18: =SUM(D18+E18) -> 18.589
A19: 29 | B19: PAIGE MANNING | C19: DEALING IN MAGIC | D19: 18.668 | F19: =IF($D19<G$1,$D19,0) -> 0 | G19: =IF(F19=0,IF($D19<H$1,$D19,0),0) -> 18.668 | H19: =IF(D19>H$1,D19,0) -> 0 | I19: =SUM(D19+E19) -> 18.668
A20: 6 | B20: BODE HAGAN | C20: MOODY | D20: 18.776 | F20: =IF($D20<G$1,$D20,0) -> 0 | G20: =IF(F20=0,IF($D20<H$1,$D20,0),0) -> 18.776 | H20: =IF(D20>H$1,D20,0) -> 0 | I20: =SUM(D20+E20) -> 18.776
A21: 42 | B21: CARTER BALAN | C21: MISSY | D21: 18.943 | F21: =IF($D21<G$1,$D21,0) -> 0 | G21: =IF(F21=0,IF($D21<H$1,$D21,0),0) -> 0 | H21: =IF(D21>H$1,D21,0) -> 18.943 | I21: =SUM(D21+E21) -> 18.943
A22: 9 | B22: CASSIDY LOW | C22: COOL SHILO | D22: 19.001 | F22: =IF($D22<G$1,$D22,0) -> 0 | G22: =IF(F22=0,IF($D22<H$1,$D22,0),0) -> 0 | H22: =IF(D22>H$1,D22,0) -> 19.001 | I22: =SUM(D22+E22) -> 19.001
A23: 21 | B23: ALYSSA HAWKES | C23: SHUSWAP SHUFFLE | D23: 19.249 | F23: =IF($D23<G$1,$D23,0) -> 0 | G23: =IF(F23=0,IF($D23<H$1,$D23,0),0) -> 0 | H23: =IF(D23>H$1,D23,0) -> 19.249 | I23: =SUM(D23+E23) -> 19.249
A24: 37 | B24: WALKER BALAN | C24: CHECKLET | D24: 19.281 | F24: =IF($D24<G$1,$D24,0) -> 0 | G24: =IF(F24=0,IF($D24<H$1,$D24,0),0) -> 0 | H24: =IF(D24>H$1,D24,0) -> 19.281 | I24: =SUM(D24+E24) -> 19.281
A25: 46 | B25: JUSTINE ELLIOTT | C25: JOE | D25: 19.414 | F25: =IF($D25<G$1,$D25,0) -> 0 | G25: =IF(F25=0,IF($D25<H$1,$D25,0),0) -> 0 | H25: =IF(D25>H$1,D25,0) -> 19.414 | I25: =SUM(D25+E25) -> 19.414
A26: 17 | B26: KALLEE MCKINNEY | C26: SCOOTERS BAR GAL | D26: 19.551 | F26: =IF($D26<G$1,$D26,0) -> 0 | G26: =IF(F26=0,IF($D26<H$1,$D26,0),0) -> 0 | H26: =IF(D26>H$1,D26,0) -> 19.551 | I26: =SUM(D26+E26) -> 19.551
A27: 8 | B27: TEA HATALEY | C27: SANTANNA | D27: 19.624 | F27: =IF($D27<G$1,$D27,0) -> 0 | G27: =IF(F27=0,IF($D27<H$1,$D27,0),0) -> 0 | H27: =IF(D27>H$1,D27,0) -> 19.624 | I27: =SUM(D27+E27) -> 19.624
A28: 33 | B28: KAYLA DUECK | C28: TRINAS LITTLE POPPIN | D28: 20.466 | F28: =IF($D28<G$1,$D28,0) -> 0 | G28: =IF(F28=0,IF($D28<H$1,$D28,0),0) -> 0 | H28: =IF(D28>H$1,D28,0) -> 20.466 | I28: =SUM(D28+E28) -> 20.466
A29: 35 | B29: KELLI ACREMAN | C29: HOBBIE | D29: 20.491 | F29: =IF($D29<G$1,$D29,0) -> 0 | G29: =IF(F29=0,IF($D29<H$1,$D29,0),0) -> 0 | H29: =IF(D29>H$1,D29,0) -> 20.491 | I29: =SUM(D29+E29) -> 20.491
A30: 45 | B30: KIANA CLARK | C30: CADILLAC | D30: 20.939 | F30: =IF($D30<G$1,$D30,0) -> 0 | G30: =IF(F30=0,IF($D30<H$1,$D30,0),0) -> 0 | H30: =IF(D30>H$1,D30,0) -> 20.939 | I30: =SUM(D30+E30) -> 20.939
A31: 14 | B31: KELLI ACREMAN | C31: HOBBIE | D31: 21.021 | F31: =IF($D31<G$1,$D31,0) -> 0 | G31: =IF(F31=0,IF($D31<H$1,$D31,0),0) -> 0 | H31: =IF(D31>H$1,D31,0) -> 21.021 | I31: =SUM(D31+E31) -> 21.021
A32: 15 | B32: DARBY DANARD | C32: DRUMS ROXY RAIN | D32: 21.288 | F32: =IF($D32<G$1,$D32,0) -> 0 | G32: =IF(F32=0,IF($D32<H$1,$D32,0),0) -> 0 | H32: =IF(D32>H$1,D32,0) -> 21.288 | I32: =SUM(D32+E32) -> 21.288
A33: 44 | B33: RAYLEE MCKENNEY | C33: MERGE WITH PERFECTION | D33: 22.603 | F33: =IF($D33<G$1,$D33,0) -> 0 | G33: =IF(F33=0,IF($D33<H$1,$D33,0),0) -> 0 | H33: =IF(D33>H$1,D33,0) -> 22.603 | I33: =SUM(D33+E33) -> 22.603
A34: 13 | B34: KIANA CLARK | C34: DRIFTER | D34: 24.991 | F34: =IF($D34<G$1,$D34,0) -> 0 | G34: =IF(F34=0,IF($D34<H$1,$D34,0),0) -> 0 | H34: =IF(D34>H$1,D34,0) -> 24.991 | I34: =SUM(D34+E34) -> 24.991
A35: 4 | B35: ALYSON FOX | C35: SHADY | D35: 50 | F35: =IF($D35<G$1,$D35,0) -> 0 | G35: =IF(F35=0,IF($D35<H$1,$D35,0),0) -> 0 | H35: =IF(D35>H$1,D35,0) -> 50 | I35: =SUM(D35+E35) -> 50
A36: 5 | B36: SHELBY BOURKE | C36: WHISPER | D36: 50 | F36: =IF($D36<G$1,$D36,0) -> 0 | G36: =IF(F36=0,IF($D36<H$1,$D36,0),0) -> 0 | H36: =IF(D36>H$1,D36,0) -> 50 | I36: =SUM(D36+E36) -> 50
A37: 7 | B37: ASHTON EWASIUK | C37: DIM PEPPY PINE | D37: 50 | F37: =IF($D37<G$1,$D37,0) -> 0 | G37: =IF(F37=0,IF($D37<H$1,$D37,0),0) -> 0 | H37: =IF(D37>H$1,D37,0) -> 50 | I37: =SUM(D37+E37) -> 50
A38: 12 | B38: BRENNA MELYNK | C38: VELVET | D38: 50 | F38: =IF($D38<G$1,$D38,0) -> 0 | G38: =IF(F38=0,IF($D38<H$1,$D38,0),0) -> 0 | H38: =IF(D38>H$1,D38,0) -> 50 | I38: =SUM(D38+E38) -> 50
A39: 16 | B39: SHELBY WINTHER | C39: WGR STORMYS SPARK | D39: 50 | F39: =IF($D39<G$1,$D39,0) -> 0 | G39: =IF(F39=0,IF($D39<H$1,$D39,0),0) -> 0 | H39: =IF(D39>H$1,D39,0) -> 50 | I39: =SUM(D39+E39) -> 50
A40: 18 | B40: RAEDYN BOURKE | C40: PACIFIC REDFORD DUDE | D40: 50 | F40: =IF($D40<G$1,$D40,0) -> 0 | G40: =IF(F40=0,IF($D40<H$1,$D40,0),0) -> 0 | H40: =IF(D40>H$1,D40,0) -> 50 | I40: =SUM(D40+E40) -> 50
A41: 20 | B41: MADISON AITKEN | C41: I AM BUGGY | D41: 50 | F41: =IF($D41<G$1,$D41,0) -> 0 | G41: =IF(F41=0,IF($D41<H$1,$D41,0),0) -> 0 | H41: =IF(D41>H$1,D41,0) -> 50 | I41: =SUM(D41+E41) -> 50
A42: 22 | B42: SHAYLEEN MIZERA | C42: LG DOX CALI SILVER | D42: 50 | F42: =IF($D42<G$1,$D42,0) -> 0 | G42: =IF(F42=0,IF($D42<H$1,$D42,0),0) -> 0 | H42: =IF(D42>H$1,D42,0) -> 50 | I42: =SUM(D42+E42) -> 50
A43: 23 | B43: KAYCEE MCKINNY | C43: ROLL ON GREY | D43: 50 | F43: =IF($D43<G$1,$D43,0) -> 0 | G43: =IF(F43=0,IF($D43<H$1,$D43,0),0) -> 0 | H43: =IF(D43>H$1,D43,0) -> 50 | I43: =SUM(D43+E43) -> 50
A44: 30 | B44: TEA HATALEY | C44: CHAMPAGNE SPECIAL | D44: 50 | F44: =IF($D44<G$1,$D44,0) -> 0 | G44: =IF(F44=0,IF($D44<H$1,$D44,0),0) -> 0 | H44: =IF(D44>H$1,D44,0) -> 50 | I44: =SUM(D44+E44) -> 50
A45: 31 | B45: LANE FOGLE | C45: TROOPER | D45: 50 | F45: =IF($D45<G$1,$D45,0) -> 0 | G45: =IF(F45=0,IF($D45<H$1,$D45,0),0) -> 0 | H45: =IF(D45>H$1,D45,0) -> 50 | I45: =SUM(D45+E45) -> 50
A46: 32 | B46: TAYLOR CHOLACH | C46: TANGO | D46: 50 | F46: =IF($D46<G$1,$D46,0) -> 0 | G46: =IF(F46=0,IF($D46<H$1,$D46,0),0) -> 0 | H46: =IF(D46>H$1,D46,0) -> 50 | I46: =SUM(D46+E46) -> 50
A47: 34 | B47: ALYSON FOX | C47: CACTUS | D47: 50 | F47: =IF($D47<G$1,$D47,0) -> 0 | G47: =IF(F47=0,IF($D47<H$1,$D47,0),0) -> 0 | H47: =IF(D47>H$1,D47,0) -> 50 | I47: =SUM(D47+E47) -> 50
A48: 43 | B48: BROOK POMERANZ | C48: EJ | D48: 50 | F48: =IF($D48<G$1,$D48,0) -> 0 | G48: =IF(F48=0,IF($D48<H$1,$D48,0),0) -> 0 | H48: =IF(D48>H$1,D48,0) -> 50 | I48: =SUM(D48+E48) -> 50
A49: 47 | F49: =IF($D49<G$1,$D49,0) -> 0 | G49: =IF(F49=0,IF($D49<H$1,$D49,0),0) -> 0 | H49: =IF(D49>H$1,D49,0) -> 0 | I49: =SUM(D49+E49) -> 0
A50: 48 | F50: 0 | G50: 0 | H50: 0 | I50: 0
A51: 49 | F51: 0 | G51: 0 | H51: 0 | I51: 0
A52: 50 | F52: 0 | G52: 0 | H52: 0 | I52: 0
A53: 51 | F53: 0 | G53: 0 | H53: 0 | I53: 0
A54: 52 | F54: 0 | G54: 0 | H54: 0 | I54: 0
A55: 53 | F55: 0 | G55: 0 | H55: 0 | I55: 0
A56: 54 | F56: 0 | G56: 0 | H56: 0 | I56: 0
A57: 55 | F57: 0 | G57: 0 | H57: 0 | I57: 0
A58: 56 | F58: 0 | G58: 0 | H58: 0 | I58: 0
A59: 57 | F59: 0 | G59: 0 | H59: 0 | I59: 0
A60: 58 | F60: 0 | G60: 0 | H60: 0 | I60: 0
A61: 59 | F61: 0 | G61: 0 | H61: 0 | I61: 0
A62: 60 | F62: 0 | G62: 0 | H62: 0 | I62: 0
A63: 61 | F63: 0 | G63: 0 | H63: 0 | I63: 0
A64: 62 | F64: 0 | G64: 0 | H64: 0 | I64: 0
A65: 63 | F65: 0 | G65: 0 | H65: 0 | I65: 0
A66: 64 | F66: 0 | G66: 0 | H66: 0 | I66: 0
A67: 65 | F67: 0 | G67: 0 | H67: 0 | I67: YOUTH
